bitfinex/quotes_SOLUSD_20220113
["timestamp","ask_amount","ask_price","bid_price","bid_amount"]
[1642107852011,2.955,148.43,148.35,19.10488094]
[1642107852209,0.26,148.43,148.35,29.21378094]
[1642107852409,2.695,148.47,148.35,38.92378094]
[1642107852608,2.695,148.47,148.36,0.07]
[1642107853514,2.945,148.47,148.36,0.07]
[1642107853712,2.695,148.47,148.36,0.07]
[1642107853913,2.695,148.47,148.38,10.1071]
[1642107854111,2.694,148.49,148.38,16.3571]
[1642107854313,2.694,148.49,148.38,16.6171]
[1642107854723,2.694,148.5,148.39,2.694]
[1642107854920,2.694,148.5,148.43,10.1036]
[1642107855120,0.33830159,148.51,148.43,10.1036]
[1642107855321,0.33830159,148.51,148.43,16.3536]
[1642107855519,0.33830159,148.51,148.43,10.1036]
[1642107855819,0.33830159,148.51,148.4,12.38150475]
[1642107856020,2.694,148.5,148.4,18.89150475]
[1642107856419,3.204,148.5,148.4,18.89150475]
[1642107856619,2.944,148.5,148.42,10.1047]
[1642107856824,2.694,148.5,148.43,14.01709223]
[1642107857121,0.33830159,148.51,148.43,14.01709223]
[1642107857321,2.694,148.5,148.4,57.0235]
[1642107858220,3.204,148.5,148.4,57.0235]
[1642107858623,3.204,148.5,148.4,54.0695]
[1642107859124,3.204,148.5,148.4,47.8195]
[1642107859326,12.2988,148.5,148.39,9.71]
[1642107859623,18.2988,148.5,148.39,9.71]
[1642107859824,12.2988,148.5,148.39,9.71]
[1642107860022,18.2988,148.5,148.39,9.71]
[1642107860225,12.2988,148.5,148.39,9.71]
[1642107860423,18.2988,148.5,148.39,9.71]
[1642107860623,67.63,148.49,148.39,9.71]
[1642107860924,67.63,148.47,148.39,9.71]
[1642107861326,67.89,148.47,148.39,9.71]
[1642107861524,2.694,148.48,148.39,20.0667]
[1642107861729,0.33830159,148.51,148.4,2.694]
[1642107861730,2.694,148.49,148.4,2.694]
[1642107861927,0.33830159,148.51,148.4,12.404]
[1642107862126,0.33830159,148.51,148.4,18.914]
[1642107862325,0.33830159,148.51,148.4,52.5927]
[1642107862624,0.33830159,148.51,148.43,10.1036]
[1642107863027,0.33830159,148.51,148.43,10.3536]
[1642107863224,0.33830159,148.51,148.43,0.25]
[1642107863424,0.33830159,148.51,148.4,12.664]
[1642107863629,4.93025069,148.51,148.4,26.0762]
[1642107863928,67.63,148.5,148.4,25.8162]
[1642107864126,11.7897,148.49,148.4,25.8162]
[1642107864326,11.7897,148.49,148.4,15.97]
[1642107864529,12.2997,148.49,148.4,15.97]
[1642107864926,12.2997,148.49,148.4,26.0762]
[1642107865130,12.2997,148.49,148.4,15.97]
[1642107865426,9.6057,148.49,148.4,15.97]
[1642107865627,9.0976,148.47,148.4,9.71]
[1642107865827,9.0976,148.47,148.36,2.694]
[1642107866027,2.695,148.46,148.33,58.9629]
[1642107866327,2.695,148.46,148.34,10.1101]
[1642107866526,3.205,148.46,148.35,12.48993493]
[1642107866727,12.0433,148.46,148.35,12.48993493]
[1642107867030,2.955,148.46,148.35,12.99993493]
[1642107867226,2.695,148.48,148.36,2.695]
[1642107867428,0.26,148.46,148.36,12.8038]
[1642107867628,0.26,148.46,148.36,20.96379521]
[1642107868029,2.955,148.48,148.36,20.96379521]
[1642107868428,3.205,148.48,148.36,19.3138]
[1642107869236,9.3572,148.48,148.36,29.0238]
[1642107869634,67.63,148.47,148.36,30.67379521]
[1642107870031,67.89,148.47,148.36,30.67379521]
[1642107870230,9.0972,148.48,148.36,30.67379521]
[1642107870431,2.695,148.49,148.36,30.67379521]
[1642107870633,0.33830159,148.51,148.36,98.30379521]
[1642107870832,0.25,148.49,148.4,10.1058]
[1642107871032,0.25,148.49,148.41,15.7319329]
[1642107871432,0.25,148.49,148.41,15.9919329]
[1642107871633,0.25,148.49,148.41,16.2419329]
[1642107872035,3.204,148.5,148.41,16.2419329]
[1642107873066,12.3001,148.5,148.41,0.51]
[1642107873462,67.63,148.49,148.39,10.3568]
[1642107873960,68.14,148.49,148.39,16.3568]
[1642107874160,68.14,148.49,148.4,1.64999521]
[1642107874362,68.14,148.49,148.39,16.1068]
[1642107874567,2.694,148.5,148.4,9.71]
[1642107874768,0.33830159,148.51,148.41,2.694]
[1642107874963,0.33830159,148.51,148.41,2.944]
[1642107875363,0.33830159,148.51,148.41,4.85399521]
[1642107875566,0.33830159,148.51,148.41,3.204]
[1642107875966,0.33830159,148.51,148.41,9.204]
[1642107876166,0.33830159,148.51,148.41,8.694]
[1642107876368,0.33830159,148.51,148.41,2.694]
[1642107876769,0.33830159,148.51,148.38,22.51606914]
[1642107876770,2.694,148.5,148.38,22.51606914]
[1642107876969,3.204,148.5,148.38,28.51606914]
[1642107877171,3.204,148.5,148.39,1.64999521]
[1642107877572,3.204,148.5,148.39,8.15999521]
[1642107878270,3.204,148.5,148.39,18.26659521]
[1642107878470,3.204,148.5,148.39,8.15999521]
[1642107878670,3.204,148.5,148.39,6.0]
[1642107878871,3.204,148.5,148.39,0.25]
[1642107879271,3.204,148.5,148.38,22.51606914]
[1642107879470,3.204,148.5,148.38,28.76606914]
[1642107880073,2.954,148.5,148.38,28.76606914]
[1642107880274,2.694,148.5,148.39,1.64999521]
[1642107880575,0.33830159,148.51,148.4,12.404]
[1642107880775,0.33830159,148.51,148.42,10.1043]
[1642107880973,101.5272695,148.64,148.43,12.404]
[1642107880974,12.404,148.63,148.43,12.404]
[1642107881172,12.404,148.63,148.44,14.79409073]
[1642107881373,12.404,148.63,148.45,80.032]
[1642107881573,18.404,148.63,148.45,103.77641517]
[1642107881774,8.694,148.63,148.46,46.7784]
[1642107882075,2.694,148.63,148.53,17.47979842]
[1642107882272,67.63,148.64,148.53,20.17179842]
[1642107882273,70.322,148.64,148.53,20.17179842]
[1642107882475,70.322,148.64,148.53,23.98979842]
[1642107882873,70.322,148.64,148.55,10.0959]
[1642107883074,70.322,148.64,148.53,23.47979842]
[1642107883273,70.322,148.64,148.53,17.47979842]
[1642107883475,1.92614659,148.58,148.53,17.47979842]
[1642107883876,1.92614659,148.58,148.53,17.98979842]
[1642107884076,1.92614659,148.58,148.53,27.82709842]
[1642107884274,1.92614659,148.58,148.53,34.08709842]
[1642107884475,3.85229319,148.61,148.54,81.0]
[1642107884676,3.85229319,148.61,148.54,92.35999521]
[1642107884874,3.85229319,148.61,148.55,4.34199521]
[1642107885080,3.85229319,148.61,148.55,10.85199521]
[1642107885276,3.85229319,148.61,148.57,10.0928]
[1642107885478,3.85229319,148.61,148.57,16.6028]
[1642107888478,1.80229319,148.61,148.57,16.6028]
[1642107888679,3.85119494,148.66,148.62,10.0899]
[1642107889079,3.85119494,148.66,148.62,10.5999]
[1642107889479,5.77843978,148.69,148.64,12.7962043]
[1642107890483,0.4,148.72,148.64,12.7962043]
[1642107890681,2.69,148.71,148.64,12.7962043]
[1642107891180,2.95,148.71,148.64,10.0895]
[1642107891382,2.95,148.71,148.63,9.71]
[1642107891582,2.95,148.71,148.63,15.96]
[1642107891783,3.2,148.71,148.63,15.96]
[1642107891981,3.2,148.71,148.63,9.96]
[1642107892182,3.2,148.71,148.63,20.0503]
[1642107892483,2.94,148.71,148.63,20.0503]
[1642107892685,2.94,148.71,148.64,1.64999521]
[1642107892885,0.25,148.71,148.64,1.64999521]
[1642107893085,0.4,148.72,148.63,9.97]
[1642107893283,0.4,148.72,148.64,10.0897]
[1642107893583,0.4,148.72,148.64,10.3397]
[1642107894483,0.4,148.72,148.64,0.25]
[1642107894884,0.4,148.72,148.63,9.98]
[1642107895289,76.775,148.75,148.64,35.0]
[1642107895489,76.7133,148.71,148.64,35.25]
[1642107895785,76.9633,148.71,148.63,9.73]
[1642107896186,78.65620948,148.71,148.63,9.73]
[1642107896485,78.91620948,148.71,148.63,0.02]
[1642107896988,78.66620948,148.71,148.63,0.02]
[1642107897387,76.9733,148.71,148.63,0.02]
[1642107897587,2.657,148.73,148.63,0.02]
[1642107897588,9.0827,148.72,148.63,0.02]
[1642107897791,76.7127,148.72,148.63,0.02]
[1642107897988,0.51,148.72,148.63,0.02]
[1642107898189,0.51,148.72,148.64,1.64999521]
[1642107898390,0.26,148.72,148.63,0.02]
[1642107898693,3.167,148.73,148.63,0.02]
[1642107898913,2.657,148.73,148.63,0.02]
[1642107899119,2.657,148.73,148.64,9.71]
[1642107899521,2.657,148.73,148.65,1.64999521]
[1642107899718,2.657,148.73,148.66,9.71]
[1642107899920,2.657,148.73,148.68,33.6142]
[1642107900322,2.657,148.73,148.68,49.8342]
[1642107900520,2.657,148.73,148.69,10.0843]
[1642107900920,2.657,148.73,148.69,16.5943]
[1642107902721,2.657,148.73,148.69,16.3443]
[1642107902926,2.657,148.73,148.69,16.5943]
[1642107904223,2.657,148.73,148.69,10.5943]
[1642107904624,2.657,148.73,148.69,10.6143]
[1642107905223,34.1014,148.84,148.7,88.689]
[1642107905423,54.7211,148.89,148.76,10.0814]
[1642107905424,9.71,148.88,148.76,10.0814]
[1642107905626,9.71,148.88,148.76,16.0644]
[1642107905826,9.71,148.88,148.76,16.3244]
[1642107906023,9.71,148.88,148.76,16.5744]
[1642107906223,9.71,148.88,148.77,17.0532625]
[1642107906523,9.71,148.88,148.8,10.0788]
[1642107907729,67.63,148.89,148.8,10.0788]
[1642107908428,23.4492,148.92,148.8,10.0788]
[1642107908630,32.8221,148.93,148.8,16.3388]
[1642107908929,32.8221,148.93,148.8,16.5888]
[1642107909531,67.63,148.94,148.81,9.71]
[1642107909731,67.63,148.94,148.86,10.0744]
[1642107910432,5.77843978,148.93,148.86,10.0744]
[1642107910838,11.77843978,148.93,148.86,10.0744]
[1642107911033,79.40843978,148.93,148.84,10.0755]
[1642107911635,79.65843978,148.93,148.85,0.07]
[1642107911835,88.72733978,148.93,148.85,0.07]
[1642107912038,88.72733978,148.93,148.82,0.07]
[1642107912236,98.8501014,148.93,148.82,0.07]
[1642107912835,7.69727167,148.92,148.82,0.07]
[1642107913038,9.0708,148.9,148.82,0.07]
[1642107913440,25.2908,148.9,148.82,0.07]
[1642107913739,67.63,148.89,148.82,0.07]
[1642107913937,77.34,148.89,148.86,0.02]
[1642107914137,6.06439994,148.88,148.86,0.02]
[1642107914337,9.71,148.87,148.71,10.0846]
[1642107914537,67.63,148.86,148.69,9.71]
[1642107914736,9.71,148.85,148.69,9.71]
[1642107914936,9.97,148.85,148.69,9.71]
[1642107915137,84.66662325,148.84,148.69,9.71]
[1642107915437,9.71,148.83,148.69,9.71]
[1642107915639,57.3589,148.89,148.7,67.63]
[1642107915840,47.6489,148.89,148.71,9.71]
[1642107916041,5.77843978,148.83,148.71,17.35999521]
[1642107916239,5.77843978,148.83,148.72,4.33799521]
[1642107916438,5.77843978,148.83,148.73,9.71]
[1642107916640,5.77843978,148.83,148.74,16.83915003]
[1642107916939,5.77843978,148.83,148.75,9.71]
[1642107917141,9.075,148.85,148.76,2.688]
[1642107917565,67.63,148.84,148.76,2.688]
[1642107917770,67.89,148.84,148.76,2.688]
[1642107917969,68.14,148.84,148.76,2.688]
[1642107918168,68.14,148.84,148.75,9.71]
[1642107918169,67.89,148.84,148.75,9.71]
[1642107918368,68.14,148.84,148.75,9.71]
[1642107918769,76.9655,148.84,148.75,9.71]
[1642107918969,67.89,148.84,148.75,9.71]
[1642107919370,67.63,148.84,148.76,2.688]
[1642107919570,5.77843978,148.87,148.76,2.938]
[1642107919770,5.77843978,148.87,148.77,10.0803]
[1642107919970,5.77843978,148.87,148.78,2.687]
[1642107920973,6.03843978,148.87,148.78,2.687]
[1642107921178,0.26,148.87,148.8,10.0788]
[1642107921374,12.69625165,148.89,148.8,10.0788]
[1642107921573,5.77843978,148.89,148.8,10.0788]
[1642107921773,5.77843978,148.89,148.8,10.5888]
[1642107921973,5.77843978,148.89,148.8,10.3388]
[1642107922172,5.77843978,148.89,148.8,0.26]
[1642107922571,5.77843978,148.89,148.8,2.687]
[1642107922972,5.77843978,148.89,148.78,2.687]
[1642107923174,5.77843978,148.89,148.77,15.71]
[1642107923373,6.02843978,148.89,148.77,15.71]
[1642107923572,6.99736059,148.88,148.77,15.71]
[1642107923775,6.99736059,148.88,148.77,9.71]
[1642107923974,7.50736059,148.88,148.77,9.71]
[1642107924374,13.50736059,148.88,148.77,9.71]
[1642107924775,23.21736059,148.88,148.75,2.687]
[1642107926176,16.77123902,148.87,148.74,2.687]
[1642107926383,5.77843978,148.86,148.74,2.687]
[1642107926578,6.02843978,148.86,148.74,2.937]
[1642107927478,6.28843978,148.86,148.74,2.937]
[1642107927679,9.0752,148.85,148.74,2.687]
[1642107928081,9.5852,148.85,148.74,2.687]
[1642107928381,9.3252,148.85,148.74,2.687]
[1642107928581,5.77843978,148.86,148.74,2.937]
[1642107928883,5.77843978,148.86,148.75,9.71]
[1642107929081,5.77843978,148.86,148.76,16.59736871]
[1642107929384,5.77843978,148.86,148.77,9.71]
[1642107929580,5.77843978,148.86,148.78,2.687]
[1642107929781,5.77843978,148.86,148.81,10.0774]
[1642107929981,5.77843978,148.86,148.82,2.687]
[1642107930182,5.77843978,148.86,148.79,2.687]
[1642107930381,29.49523978,148.9,148.79,12.397]
[1642107930582,5.77843978,148.9,148.79,18.907]
[1642107930981,5.77843978,148.9,148.82,10.0769]
[1642107931183,72.40843978,148.9,148.82,10.0769]
[1642107931583,72.40843978,148.9,148.82,25.97463103]
[1642107931991,67.63,148.9,148.83,2.687]
[1642107932183,67.63,148.9,148.84,10.0759]
[1642107932683,9.71,148.96,148.84,10.3259]
[1642107932883,9.71,148.96,148.84,10.0759]
[1642107933084,46.8957,148.97,148.84,32.0169]
[1642107933283,67.63,148.98,148.89,10.0723]
[1642107933484,19.34073297,149.0,148.89,10.0723]
[1642107933884,9.71,149.0,148.89,10.0723]
[1642107934284,9.71,149.0,148.91,10.0711]
[1642107934883,83.34,149.0,148.91,10.0711]
[1642107935683,9.71,149.0,148.92,13.37211469]
[1642107935884,8.02970619,149.01,148.93,10.0699]
[1642107936084,75.65970619,149.01,148.93,10.0699]
[1642107936284,8.02970619,149.01,148.93,10.0699]
[1642107937085,0.33718327,149.01,148.93,10.0699]
[1642107938391,0.33718327,149.01,148.93,24.08415773]
[1642107938791,0.33718327,149.01,148.93,14.01425773]
[1642107938991,0.37718327,149.01,148.92,2.685]
[1642107940289,1.07567282,149.01,148.92,2.685]
[1642107940491,7.26872907,149.01,148.92,2.685]
[1642107940690,67.63,149.0,148.87,9.71]
[1642107940892,69.27999521,149.0,148.86,9.71]
[1642107941090,11.35999521,148.99,148.84,9.71]
[1642107941297,11.35999521,148.99,148.85,2.686]
[1642107941491,9.0688,148.95,148.85,2.686]
[1642107941890,82.43487671,148.95,148.85,2.686]
[1642107942093,14.55487671,148.95,148.85,2.946]
[1642107942390,9.3288,148.95,148.85,2.946]
[1642107942792,9.3288,148.95,148.85,13.0214]
[1642107942994,9.3288,148.95,148.85,13.2714]
[1642107943193,0.26,148.95,148.85,13.2714]
[1642107943393,0.26,148.95,148.85,37.8317]
[1642107943595,9.3278,148.96,148.85,37.8317]
[1642107943824,67.63,148.95,148.85,37.8317]
[1642107943995,0.26,148.95,148.85,37.8317]
[1642107944598,9.3278,148.96,148.85,37.8317]
[1642107945201,9.3278,148.96,148.85,37.5717]
[1642107945406,9.3278,148.96,148.85,2.686]
[1642107945605,17.22779521,148.96,148.82,35.3039]
[1642107945802,9.71,148.95,148.82,22.9079]
[1642107946002,9.0697,148.93,148.82,22.9079]
[1642107946403,67.63,148.92,148.82,22.9079]
[1642107946601,67.63,148.92,148.82,23.1579]
[1642107946602,68.14,148.92,148.82,23.1579]
[1642107947207,68.14,148.92,148.82,33.2353]
[1642107947404,77.2099,148.92,148.82,32.9853]
[1642107947805,83.2099,148.92,148.82,32.9853]
[1642107948005,83.2099,148.92,148.82,10.0774]
[1642107948409,83.2099,148.92,148.81,33.274]
[1642107949010,83.2099,148.92,148.81,10.0782]
[1642107949210,83.2099,148.92,148.8,2.686]
[1642107949611,92.9199,148.92,148.8,2.686]
[1642107950611,94.56989521,148.92,148.8,2.686]
[1642107951429,104.72836771,148.92,148.74,9.71]
[1642107951629,104.72836771,148.92,148.71,2.687]
[1642107951630,129.67376771,148.92,148.72,9.71]
[1642107951832,129.67376771,148.92,148.73,16.91048247]
[1642107952229,9.0736,148.87,148.74,10.0829]
[1642107952431,5.92023553,148.86,148.75,2.688]
[1642107952631,5.92023553,148.86,148.74,2.688]
[1642107952830,12.43023553,148.86,148.74,2.688]
[1642107953031,67.63,148.85,148.74,2.688]
[1642107953231,67.63,148.85,148.74,12.7708]
[1642107953429,74.14,148.85,148.74,12.7708]
[1642107953631,74.14,148.85,148.82,0.02]
[1642107953830,6.06439994,148.84,148.82,0.02]
[1642107954033,67.63,148.83,148.82,0.02]
[1642107954431,68.14,148.83,148.82,0.02]
[1642107954636,68.14,148.83,148.8,0.02]
[1642107954832,68.14,148.83,148.8,0.04]
[1642107955432,6.06439994,148.82,148.8,0.04]
[1642107955634,67.63,148.81,148.8,0.04]
[1642107956133,67.89,148.81,148.8,0.04]
[1642107959037,68.14,148.81,148.8,0.04]
[1642107960841,74.14,148.81,148.8,0.04]
[1642107961043,68.14,148.81,148.8,0.04]
[1642107961239,74.14,148.81,148.8,0.04]
[1642107961441,68.14,148.81,148.8,0.04]
[1642107961640,67.63,148.81,148.8,0.04]
[1642107963039,68.14,148.81,148.8,0.04]
[1642107963440,67.89,148.81,148.8,0.04]
[1642107963940,68.14,148.81,148.8,0.04]
[1642107964842,67.89,148.81,148.8,0.04]
[1642107965044,6.06439994,148.82,148.8,0.04]
[1642107965243,9.71,148.87,148.8,0.04]
[1642107965244,10.31806217,148.98,148.8,0.04]
[1642107965447,9.71,148.94,148.8,0.04]
[1642107965645,7.01530523,148.93,148.8,0.04]
[1642107965847,9.71,148.92,148.8,0.04]
[1642107966044,9.0711,148.91,148.8,0.04]
[1642107966245,9.71,148.9,148.8,0.04]
[1642107966644,15.96,148.9,148.8,0.04]
[1642107967044,9.0727,148.88,148.8,0.04]
[1642107967244,67.63,148.87,148.8,0.04]
[1642107967644,74.14,148.87,148.8,0.04]
[1642107968847,9.0742,148.86,148.8,0.04]
[1642107969050,67.63,148.85,148.8,0.04]
[1642107969446,74.14,148.85,148.8,0.04]
[1642107971356,67.88,148.85,148.8,0.04]
[1642107971553,9.71,148.88,148.8,0.04]
[1642107971950,67.63,148.87,148.8,0.04]
[1642107972352,73.88,148.87,148.8,0.04]
[1642107972953,16.76529692,148.91,148.8,0.04]
[1642107972954,16.54829692,148.91,148.8,0.04]
[1642107973157,9.71,148.91,148.8,0.04]
[1642107973354,9.71,148.91,148.81,2.687]
[1642107973554,9.71,148.91,148.81,2.937]
[1642107973758,67.63,148.92,148.81,2.937]
[1642107973959,67.63,148.92,148.83,10.0764]
[1642107974357,67.63,148.92,148.83,16.0764]
[1642107974858,67.63,148.92,148.83,10.0764]
[1642107975457,67.88,148.92,148.83,10.0764]
[1642107976061,68.14,148.92,148.83,10.0764]
[1642107976261,68.14,148.92,148.82,10.0776]
[1642107976561,83.2098,148.92,148.82,10.0776]
[1642107976764,77.2098,148.92,148.82,10.0776]
[1642107977161,76.9498,148.92,148.82,10.0776]
[1642107977584,67.88,148.92,148.82,10.0776]
[1642107977986,73.88,148.92,148.82,10.0776]
[1642107978192,67.88,148.92,148.82,10.0776]
[1642107978385,68.14,148.92,148.82,10.0776]
[1642107978587,68.14,148.92,148.81,0.04]
[1642107978588,83.85,148.92,148.81,0.04]
[1642107978886,85.49999521,148.92,148.81,0.04]
[1642107979387,7.69685191,148.91,148.81,0.04]
[1642107979587,4.32019408,148.87,148.81,0.04]
[1642107979787,13.39309408,148.87,148.81,0.04]
[1642107979987,19.90309408,148.87,148.81,0.02]
[1642107980189,19.90309408,148.87,148.82,0.02]
[1642107980492,19.90309408,148.87,148.82,0.04]
[1642107980690,7.69717972,148.86,148.82,0.04]
[1642107981090,8.20717972,148.86,148.82,0.04]
[1642107981290,67.63,148.85,148.82,0.04]
[1642107981490,68.0,148.84,148.7,2.687]
[1642107981690,9.71,148.83,148.68,52.32613363]
[1642107981888,67.63,148.82,148.68,52.32613363]
[1642107982088,6.58305146,148.81,148.68,68.20225055]
[1642107982290,67.63,148.8,148.68,68.20225055]
[1642107982490,68.14,148.8,148.68,68.20225055]
[1642107982690,68.14,148.8,148.68,64.87561692]
[1642107982889,68.14,148.8,148.68,65.12561692]
[1642107983089,68.14,148.8,148.68,64.87561692]
[1642107983292,77.2172,148.8,148.7,10.0856]
[1642107984191,3.84842595,148.81,148.7,10.0856]
[1642107984391,3.84842595,148.81,148.7,20.0456]
[1642107984592,3.84842595,148.81,148.7,27.95559521]
[1642107985400,7.69742991,148.84,148.7,27.95559521]
[1642107986002,7.69742991,148.84,148.7,27.44559521]
[1642107986201,13.69742991,148.84,148.72,10.0839]
[1642107986402,0.26,148.84,148.72,10.0839]
[1642107986601,9.71,148.85,148.72,10.0839]
[1642107986802,15.71,148.85,148.72,16.0839]
[1642107987303,19.55842595,148.85,148.72,16.0839]
[1642107987505,9.0739,148.84,148.73,12.7712]
[1642107987905,9.5839,148.84,148.73,12.7712]
[1642107988309,13.43232595,148.84,148.73,10.0832]
[1642107988506,19.43232595,148.84,148.73,10.0832]
[1642107988907,67.63,148.83,148.73,10.0832]
[1642107989109,67.63,148.8,148.72,2.688]
[1642107989308,67.63,148.8,148.72,12.7723]
[1642107989608,67.89,148.8,148.72,2.688]
[1642107990210,76.9664,148.8,148.72,2.688]
[1642107990410,76.9664,148.8,148.71,36.5362]
[1642107990613,76.9664,148.8,148.71,36.7862]
[1642107992616,77.2164,148.8,148.71,33.8482]
[1642107992817,77.2164,148.8,148.71,23.7635]
[1642107993418,77.2164,148.8,148.68,22.5742]
[1642107993620,83.2164,148.8,148.68,22.5742]
[1642107993917,77.2164,148.8,148.68,22.5742]
[1642107994321,77.2164,148.8,148.68,22.8242]
[1642107994820,77.2164,148.8,148.68,22.5742]
[1642107995020,83.2164,148.8,148.71,0.02]
[1642107995419,87.06482595,148.8,148.71,0.02]
[1642107995620,80.80482595,148.8,148.71,0.02]
[1642107995821,71.72842595,148.8,148.71,0.02]
[1642107996122,71.72842595,148.8,148.71,10.1051]
[1642107996337,67.88,148.8,148.71,10.1051]
[1642107997539,67.88,148.8,148.71,25.99743475]
[1642107998140,77.59,148.8,148.71,25.99743475]
[1642107998745,77.34,148.8,148.71,25.99743475]
[1642107998943,9.71,148.8,148.71,32.24743475]
[1642107999144,9.71,148.8,148.71,34.93543475]
[1642107999344,67.63,148.81,148.71,34.93543475]
[1642107999644,67.63,148.81,148.71,44.64543475]
[1642108000044,67.63,148.81,148.71,44.39543475]
[1642108000744,67.63,148.81,148.71,28.5031]
[1642108000943,76.9554,148.81,148.71,28.5031]
[1642108001146,76.9554,148.81,148.71,25.8151]
[1642108001349,77.2154,148.81,148.71,19.8151]
[1642108001549,77.2154,148.81,148.71,10.1051]
[1642108001845,1.69901589,148.8,148.71,0.02]
[1642108002047,9.0781,148.77,148.71,0.02]
[1642108002446,9.5881,148.77,148.71,0.02]
[1642108002647,67.63,148.76,148.71,0.02]
[1642108003048,67.89,148.76,148.71,0.02]
[1642108003249,76.9686,148.76,148.71,0.02]
[1642108003851,83.2186,148.76,148.71,0.02]
[1642108004451,77.2186,148.76,148.71,0.02]
[1642108004653,83.2186,148.76,148.71,0.02]
[1642108005055,1.92568997,148.74,148.71,0.02]
[1642108005452,6.06439994,148.73,148.71,0.02]
[1642108006153,3.03219997,148.73,148.71,0.02]
[1642108006954,3.03219997,148.72,148.71,0.02]
[1642108007355,3.29219997,148.72,148.71,0.02]
[1642108010957,3.54219997,148.72,148.71,0.02]
[1642108011257,71.17219997,148.72,148.71,0.02]
[1642108012059,77.17219997,148.72,148.71,0.02]
[1642108013063,79.09788994,148.72,148.71,0.02]
[1642108013264,88.17998994,148.72,148.71,0.02]
[1642108016101,81.91998994,148.72,148.71,0.02]
[1642108016501,31.0,148.71,148.63,1.83046189]
[1642108016706,9.084,148.69,148.63,1.83046189]
[1642108016909,1.69901589,148.68,148.63,1.83046189]
[1642108017101,1.94901589,148.68,148.63,1.83046189]
[1642108017301,7.94901589,148.68,148.61,1.83046189]
[1642108017502,67.63,148.67,148.61,1.83046189]
[1642108017703,76.7152,148.67,148.61,1.83046189]
[1642108017900,77.2252,148.67,148.61,1.83046189]
[1642108018502,83.2252,148.67,148.61,1.83046189]
[1642108018903,77.2252,148.67,148.61,1.83046189]
[1642108019104,68.14,148.67,148.61,1.83046189]
[1642108019411,68.14,148.67,148.6,1.83046189]
[1642108020003,67.89,148.67,148.61,0.02]
[1642108020410,82.9751,148.67,148.61,0.02]
[1642108020704,67.63,148.67,148.61,0.02]
[1642108020905,1.92568997,148.69,148.61,0.02]
[1642108021106,69.55568997,148.7,148.61,0.02]
[1642108021305,69.55568997,148.7,148.62,2.69]
[1642108021911,67.63,148.7,148.62,4.52046189]
[1642108022106,67.89,148.7,148.62,4.52046189]
[1642108022509,67.63,148.7,148.62,4.52046189]
[1642108022908,67.63,148.7,148.63,1.83046189]
[1642108023911,67.63,148.7,148.63,11.92096189]
[1642108024810,67.63,148.7,148.63,1.83046189]
[1642108025009,67.89,148.7,148.63,1.83046189]
[1642108025414,0.26,148.7,148.63,1.83046189]
[1642108025812,1.92568997,148.72,148.63,2.08046189]
[1642108026011,1.92568997,148.72,148.63,26.21876189]
[1642108026211,1.92568997,148.72,148.63,43.5787571]
[1642108026412,1.92568997,148.73,148.64,1.83046189]